[Event "Open Nuevo Centro. Jornada 2"]
[Site "Chess.com"]
[Date "2020.06.26"]
[Round "4"]
[White "Beneyto de Ramon, Guillermo"]
[Black "Gracia Calvo, Andrés"]
[Result "0-1"]
[WhiteElo "1515"]
[BlackElo "1817"]
[TimeControl "180+2"]
[EndTime "11:07:36 PDT"]
[Termination "Victoria de andresjaque21 por abandono"]

1. c4 {[%clk 0:03:01.8]} 1... c6 {[%clk 0:03:00.7]} 2. Nc3 {[%clk 0:03:01]} 2...
d5 {[%clk 0:03:01.9]} 3. cxd5 {[%clk 0:03:02.2]} 3... cxd5 {[%clk 0:03:02.8]} 4.
d4 {[%clk 0:03:03.6]} 4... Nc6 {[%clk 0:03:03.6]} 5. g3 {[%clk 0:03:04.7]} 5...
Bf5 {[%clk 0:03:04.3]} 6. Nf3 {[%clk 0:03:04.3]} 6... e6 {[%clk 0:03:05.4]} 7.
Bf4 {[%clk 0:03:03.4]} 7... Bd6 {[%clk 0:03:05.8]} 8. Bxd6 {[%clk 0:03:02.5]}
8... Qxd6 {[%clk 0:03:06.6]} 9. Nb5 {[%clk 0:02:58.1]} 9... Qb4+ {[%clk
0:03:04]} 10. Nc3 {[%clk 0:02:56]} 10... Nf6 {[%clk 0:03:03.7]} 11. Bg2 {[%clk
0:02:55.7]} 11... Qxb2 {[%clk 0:03:02.7]} 12. Rb1 {[%clk 0:02:49.6]} 12... Qxc3+
{[%clk 0:03:01.4]} 13. Qd2 {[%clk 0:02:46.8]} 13... Qxd2+ {[%clk 0:03:01.3]} 14.
Nxd2 {[%clk 0:02:48.7]} 14... Bxb1 {[%clk 0:03:01.9]} 15. Nxb1 {[%clk
0:02:50.6]} 15... Kd7 {[%clk 0:03:01.5]} 16. e3 {[%clk 0:02:51.2]} 16... a6
{[%clk 0:03:01.1]} 17. Nc3 {[%clk 0:02:51.7]} 17... b5 {[%clk 0:03:01]} 18. O-O
{[%clk 0:02:51]} 18... Rhc8 {[%clk 0:02:57.2]} 19. a4 {[%clk 0:02:50.1]} 19...
b4 {[%clk 0:02:56.7]} 20. Na2 {[%clk 0:02:46.2]} 20... b3 {[%clk 0:02:55]} 21.
Nc1 {[%clk 0:02:46.9]} 21... b2 {[%clk 0:02:54]} 22. Nd3 {[%clk 0:02:46.2]}
22... Rab8 {[%clk 0:02:53.6]} 23. Rb1 {[%clk 0:02:46.5]} 23... Nb4 {[%clk
0:02:45.5]} 24. Bf1 {[%clk 0:02:35.2]} 24... Nxd3 {[%clk 0:02:44.6]} 25. Bxd3
{[%clk 0:02:35.8]} 25... Rc1+ {[%clk 0:02:44.7]} 26. Kg2 {[%clk 0:02:37.5]}
26... Rxb1 {[%clk 0:02:45]} 27. Bxb1 {[%clk 0:02:39.4]} 27... Ne4 {[%clk
0:02:45.1]} 28. Bd3 {[%clk 0:02:37.7]} 0

[Event "Open Nuevo Centro. Jornada 2"]
[Site "Chess.com"]
[Date "2020.06.26"]
[Round "4"]
[White "Rausell Taberner, Diego"]
[Black "Rabbani Perez, Oumaima "]
[Result "1-0"]
[WhiteElo "511"]
[BlackElo "691"]
[TimeControl "180+2"]
[EndTime "11:07:56 PDT"]
[Termination "Victoria de DieguinRau por jaque mate"]

1. e4 {[%clk 0:03:01.9]} 1... d5 {[%clk 0:03:01.9]} 2. exd5 {[%clk 0:03:01.7]}
2... e6 {[%clk 0:02:49]} 3. dxe6 {[%clk 0:02:56.5]} 3... Bxe6 {[%clk 0:02:48.8]}
4. Nc3 {[%clk 0:02:55.8]} 4... Bc5 {[%clk 0:02:46.2]} 5. Bb5+ {[%clk 0:02:48.5]}
5... Kf8 {[%clk 0:02:41]} 6. Nf3 {[%clk 0:02:48]} 6... Qd4 {[%clk 0:02:31.8]} 7.
Nxd4 {[%clk 0:02:45.9]} 7... Bxd4 {[%clk 0:02:31.4]} 8. d3 {[%clk 0:02:45.4]}
8... Nd7 {[%clk 0:02:25.9]} 9. b3 {[%clk 0:02:37.1]} 9... Ne5 {[%clk 0:02:23.7]}
10. Ba3+ {[%clk 0:02:37.4]} 10... Bc5 {[%clk 0:02:11.9]} 11. Bxc5+ {[%clk
0:02:36.4]} 11... Ne7 {[%clk 0:02:03.4]} 12. Nd5 {[%clk 0:02:36]} 12... Bxd5
{[%clk 0:02:02.1]} 13. Qe2 {[%clk 0:02:28.4]} 13... Bxg2 {[%clk 0:02:01.4]} 14.
Qxe5 {[%clk 0:02:28]} 14... Bxh1 {[%clk 0:01:59.6]} 15. Bxe7+ {[%clk 0:02:28.2]}
15... Kg8 {[%clk 0:01:58.5]} 16. Qg5 {[%clk 0:02:24.2]} 16... a6 {[%clk
0:01:48.8]} 17. Bf6 {[%clk 0:02:23.4]} 17... Kf8 {[%clk 0:01:47.2]} 18. Qxg7#
{[%clk 0:02:23]} 1

[Event "Open Nuevo Centro. Jornada 2"]
[Site "Chess.com"]
[Date "2020.06.26"]
[Round "4"]
[White "Montesinos Diaz, Luis"]
[Black "Aguado, Pablo Luis"]
[Result "1/2-1/2"]
[WhiteElo "1846"]
[BlackElo "1697"]
[TimeControl "180+2"]
[EndTime "11:08:20 PDT"]
[Termination "Partida en tablas por mutuo acuerdo"]

1. d4 {[%clk 0:03:01.9]} 1... d5 {[%clk 0:03:00.3]} 2. Nf3 {[%clk 0:02:59.3]}
2... Nf6 {[%clk 0:03:00.8]} 3. e3 {[%clk 0:02:54.5]} 3... e6 {[%clk 0:02:59.7]}
4. Bd3 {[%clk 0:02:55]} 4... Be7 {[%clk 0:02:55.6]} 5. Nbd2 {[%clk 0:02:54.8]}
5... O-O {[%clk 0:02:55.8]} 6. b3 {[%clk 0:02:55.1]} 6... Nbd7 {[%clk
0:02:56.8]} 7. Bb2 {[%clk 0:02:56.2]} 7... b6 {[%clk 0:02:55.7]} 8. O-O {[%clk
0:02:56.9]} 8... Bb7 {[%clk 0:02:56.6]} 9. c4 {[%clk 0:02:58.1]} 9... c5 {[%clk
0:02:56.8]} 10. Rc1 {[%clk 0:02:58.5]} 10... Rc8 {[%clk 0:02:57]} 11. Ne5 {[%clk
0:02:58.6]} 11... Nxe5 {[%clk 0:02:56.7]} 12. dxe5 {[%clk 0:02:58.9]} 12... Ne4
{[%clk 0:02:55.6]} 13. Nxe4 {[%clk 0:02:57.4]} 13... dxe4 {[%clk 0:02:57.5]} 14.
Bc2 {[%clk 0:02:57.7]} 14... Qxd1 {[%clk 0:02:57.3]} 15. Rcxd1 {[%clk
0:02:58.8]} 15... Rfd8 {[%clk 0:02:58.9]} 16. Rfe1 {[%clk 0:02:55.4]} 16... f6
{[%clk 0:02:42.1]} 17. exf6 {[%clk 0:02:54.7]} 17... gxf6 {[%clk 0:02:44]} 18.
Kf1 {[%clk 0:02:53.5]} 18... Kf7 {[%clk 0:02:43.4]} 19. Ke2 {[%clk 0:02:53.7]}
19... e5 {[%clk 0:02:40.2]} 20. f3 {[%clk 0:02:54]} 20... exf3+ {[%clk
0:02:39.9]} 21. gxf3 {[%clk 0:02:55.8]} 21... h6 {[%clk 0:02:31.7]} 22. Bf5
{[%clk 0:02:55.7]} 22... Rxd1 {[%clk 0:02:31.3]} 23. Rxd1 {[%clk 0:02:56.5]}
23... Rd8 {[%clk 0:02:32.9]} 24. Rxd8 {[%clk 0:02:52.8]} 24... Bxd8 {[%clk
0:02:34.8]} 25. e4 {[%clk 0:02:54.3]} 25... Bc6 {[%clk 0:02:24.4]} 26. Bc1
{[%clk 0:02:53.3]} 26... h5 {[%clk 0:02:22.1]} 27. h4 {[%clk 0:02:50.2]} 27...
Ke7 {[%clk 0:02:14.6]} 28. Bg6 {[%clk 0:02:44]} 28... Be8 {[%clk 0:02:15.3]} 29.
Bf5 {[%clk 0:02:40.7]} 29... Bd7 {[%clk 0:02:06.3]} 1/2-1

[Event "Open Nuevo Centro. Jornada 2"]
[Site "Chess.com"]
[Date "2020.06.26"]
[Round "4"]
[White "Donate Peris, Jose Manuel"]
[Black "Zakharash, Georgii"]
[Result "1-0"]
[WhiteElo "1600"]
[BlackElo "1058"]
[TimeControl "180+2"]
[EndTime "11:09:15 PDT"]
[Termination "Victoria de cheryme por tiempo"]

1. d4 {[%clk 0:03:01.9]} 1... d5 {[%clk 0:02:59]} 2. c4 {[%clk 0:03:02.1]} 2...
dxc4 {[%clk 0:02:58]} 3. e3 {[%clk 0:03:02.8]} 3... b5 {[%clk 0:02:52.1]} 4. a4
{[%clk 0:02:55.3]} 4... c6 {[%clk 0:02:51.4]} 5. axb5 {[%clk 0:02:52.4]} 5...
cxb5 {[%clk 0:02:51.1]} 6. Qf3 {[%clk 0:02:51]} 6... Bf5 {[%clk 0:01:53.5]} 7.
Qxa8 {[%clk 0:02:49.2]} 7... Nc6 {[%clk 0:01:55.4]} 8. Qxd8+ {[%clk 0:02:47.6]}
8... Kxd8 {[%clk 0:01:57.3]} 9. Nc3 {[%clk 0:02:38.4]} 9... b4 {[%clk
0:01:56.1]} 10. Nd5 {[%clk 0:02:29.7]} 10... a5 {[%clk 0:01:57.8]} 11. Bxc4
{[%clk 0:02:26.9]} 11... Be4 {[%clk 0:01:45.6]} 12. Nf3 {[%clk 0:02:21]} 1

[Event "Open Nuevo Centro. Jornada 2"]
[Site "Chess.com"]
[Date "2020.06.26"]
[Round "4"]
[White "Martínez Cuenca, Adrián "]
[Black "Ainsa Jimenez, Lucas"]
[Result "0-1"]
[WhiteElo "572"]
[BlackElo "869"]
[TimeControl "180+2"]
[EndTime "11:09:17 PDT"]
[Termination "Victoria de ainsaluck por jaque mate"]

1. e4 {[%clk 0:03:01.9]} 1... e5 {[%clk 0:02:58.1]} 2. Nf3 {[%clk 0:03:01.1]}
2... Nc6 {[%clk 0:02:58.8]} 3. d3 {[%clk 0:02:50.7]} 3... Nf6 {[%clk 0:02:58.3]}
4. g3 {[%clk 0:02:47.8]} 4... d6 {[%clk 0:02:57.8]} 5. Bg2 {[%clk 0:02:47.2]}
5... Bg4 {[%clk 0:02:57]} 6. O-O {[%clk 0:02:44]} 6... Be7 {[%clk 0:02:57.2]} 7.
Ng5 {[%clk 0:02:27.4]} 7... Bxd1 {[%clk 0:02:51.6]} 8. Rxd1 {[%clk 0:02:25.3]}
8... Ng4 {[%clk 0:02:49.1]} 9. h3 {[%clk 0:02:17.1]} 9... Bxg5 {[%clk 0:02:46]}
10. hxg4 {[%clk 0:02:15.9]} 10... Bxc1 {[%clk 0:02:44.5]} 11. Rxc1 {[%clk
0:02:15.9]} 11... O-O {[%clk 0:02:43.2]} 12. c3 {[%clk 0:02:13.2]} 12... Ne7
{[%clk 0:02:41.3]} 13. d4 {[%clk 0:02:13.1]} 13... exd4 {[%clk 0:02:39.3]} 14.
cxd4 {[%clk 0:02:13.4]} 14... Nc6 {[%clk 0:02:36]} 15. d5 {[%clk 0:02:13.2]}
15... Nd4 {[%clk 0:02:34.3]} 16. Nc3 {[%clk 0:02:08.3]} 16... Qg5 {[%clk
0:02:27.3]} 17. f4 {[%clk 0:02:05.6]} 17... Qxg4 {[%clk 0:02:25.3]} 18. Nb5
{[%clk 0:02:01.8]} 18... Ne2+ {[%clk 0:02:22.7]} 19. Kf1 {[%clk 0:01:58.1]}
19... Nxc1 {[%clk 0:02:21.4]} 20. Rxc1 {[%clk 0:01:56.3]} 20... Qxg3 {[%clk
0:02:17.4]} 21. Nxc7 {[%clk 0:01:55.4]} 21... Qxf4+ {[%clk 0:02:15.9]} 22. Ke2
{[%clk 0:01:47.1]} 22... Qxc1 {[%clk 0:02:14.5]} 23. Kd3 {[%clk 0:01:46.4]}
23... Qxc7 {[%clk 0:02:11.4]} 24. Kd2 {[%clk 0:01:45.1]} 24... Qa5+ {[%clk
0:02:08.1]} 25. Kc2 {[%clk 0:01:43.5]} 25... Qxa2 {[%clk 0:02:08.2]} 26. Kc3
{[%clk 0:01:43.7]} 26... Rac8+ {[%clk 0:02:08.8]} 27. Kb4 {[%clk 0:01:42]} 27...
Qc4+ {[%clk 0:02:07.4]} 28. Ka3 {[%clk 0:01:41.7]} 28... Rc5 {[%clk 0:02:05.2]}
29. Bf3 {[%clk 0:01:38.8]} 29... Ra5# {[%clk 0:02:04.9]} 0

[Event "Open Nuevo Centro. Jornada 2"]
[Site "Chess.com"]
[Date "2020.06.26"]
[Round "4"]
[White "Hernández Tomás, Efrén"]
[Black "Cebolla Ruiz, David"]
[Result "0-1"]
[WhiteElo "1039"]
[BlackElo "1572"]
[TimeControl "180+2"]
[EndTime "11:10:05 PDT"]
[Termination "Victoria de Dabelcebolla por abandono"]

1. e4 {[%clk 0:03:01.9]} 1... c6 {[%clk 0:02:54.6]} 2. Nf3 {[%clk 0:03:01.9]}
2... d5 {[%clk 0:02:49]} 3. Nc3 {[%clk 0:02:56.8]} 3... Nf6 {[%clk 0:02:48.3]}
4. e5 {[%clk 0:02:55.9]} 4... Ne4 {[%clk 0:02:49.2]} 5. Nxe4 {[%clk 0:02:55.5]}
5... dxe4 {[%clk 0:02:50.5]} 6. Ng5 {[%clk 0:02:55.9]} 6... Bf5 {[%clk
0:02:50.3]} 7. Qe2 {[%clk 0:02:55]} 7... Nd7 {[%clk 0:02:47.1]} 8. Nxe4 {[%clk
0:02:54.6]} 8... Nxe5 {[%clk 0:02:45.9]} 9. f4 {[%clk 0:02:51.4]} 9... Ng6
{[%clk 0:02:45.3]} 10. d3 {[%clk 0:02:49.9]} 10... e6 {[%clk 0:02:39.8]} 11. Ng3
{[%clk 0:02:49.8]} 11... Be7 {[%clk 0:02:30.1]} 12. Nxf5 {[%clk 0:02:42.6]}
12... exf5 {[%clk 0:02:30.8]} 13. Bd2 {[%clk 0:02:41.6]} 13... O-O {[%clk
0:02:28.5]} 14. O-O-O {[%clk 0:02:38.5]} 14... Bd6 {[%clk 0:02:28.6]} 15. g3
{[%clk 0:02:38.7]} 15... Re8 {[%clk 0:02:29]} 16. Qh5 {[%clk 0:02:33]} 16... Qd7
{[%clk 0:02:24.7]} 17. Bh3 {[%clk 0:02:28.5]} 17... Ne7 {[%clk 0:02:14.3]} 18.
Rhe1 {[%clk 0:02:23.6]} 18... a5 {[%clk 0:02:07.7]} 19. Re2 {[%clk 0:02:20.5]}
19... a4 {[%clk 0:02:05.5]} 20. Rde1 {[%clk 0:02:20.3]} 20... b5 {[%clk
0:01:59.4]} 21. a3 {[%clk 0:01:51.4]} 21... c5 {[%clk 0:01:56.1]} 22. b4 {[%clk
0:01:48.7]} 22... cxb4 {[%clk 0:01:55.1]} 23. Bxb4 {[%clk 0:01:48.8]} 23... Bxb4
{[%clk 0:01:55.5]} 24. axb4 {[%clk 0:01:47.3]} 24... a3 {[%clk 0:01:54.9]} 25.
Rxe7 {[%clk 0:01:47.2]} 25... Rxe7 {[%clk 0:01:51.6]} 26. Bxf5 {[%clk 0:01:45]}
26... Rxe1+ {[%clk 0:01:51.7]} 27. Kd2 {[%clk 0:01:42]} 27... Qe7 {[%clk
0:01:46.1]} 28. Qh6 {[%clk 0:01:42.4]} 28... gxh6 {[%clk 0:01:44.3]} 29. Bxh7+
{[%clk 0:01:04.5]} 0

[Event "Open Nuevo Centro. Jornada 2"]
[Site "Chess.com"]
[Date "2020.06.26"]
[Round "4"]
[White "Morata Briones, Carlos"]
[Black "Tormos Beltran, Maite"]
[Result "0-1"]
[WhiteElo "850"]
[BlackElo "1462"]
[TimeControl "180+2"]
[EndTime "11:10:09 PDT"]
[Termination "Victoria de TORBEL79 por jaque mate"]

1. e4 {[%clk 0:03:01.9]} 1... d5 {[%clk 0:02:53.6]} 2. e5 {[%clk 0:03:01.4]}
2... c5 {[%clk 0:02:54]} 3. d4 {[%clk 0:02:58.7]} 3... Nc6 {[%clk 0:02:54.3]} 4.
dxc5 {[%clk 0:02:58.9]} 4... e6 {[%clk 0:02:54.1]} 5. Nc3 {[%clk 0:02:57.4]}
5... Bxc5 {[%clk 0:02:55.2]} 6. Be3 {[%clk 0:02:54.6]} 6... Bxe3 {[%clk
0:02:54.6]} 7. fxe3 {[%clk 0:02:55.2]} 7... Nge7 {[%clk 0:02:54.7]} 8. e4 {[%clk
0:02:55.4]} 8... O-O {[%clk 0:02:55.3]} 9. exd5 {[%clk 0:02:55.7]} 9... Nxd5
{[%clk 0:02:55.8]} 10. Nxd5 {[%clk 0:02:53.7]} 10... exd5 {[%clk 0:02:56.6]} 11.
Bd3 {[%clk 0:02:48.1]} 11... Re8 {[%clk 0:02:57.1]} 12. Kf1 {[%clk 0:02:45.4]}
12... Rxe5 {[%clk 0:02:54.6]} 13. Nh3 {[%clk 0:02:41.4]} 13... Qf6+ {[%clk
0:02:54.6]} 14. Kg1 {[%clk 0:02:36.6]} 14... Bxh3 {[%clk 0:02:54.6]} 15. gxh3
{[%clk 0:02:35.4]} 15... Rg5+ {[%clk 0:02:55.1]} 16. Qg4 {[%clk 0:02:30.8]}
16... Rxg4+ {[%clk 0:02:56]} 17. hxg4 {[%clk 0:02:32]} 17... Nd4 {[%clk
0:02:56.2]} 18. Re1 {[%clk 0:02:27.9]} 18... Nf3+ {[%clk 0:02:56.1]} 19. Kg2
{[%clk 0:02:27.4]} 19... Nxe1+ {[%clk 0:02:58]} 20. Rxe1 {[%clk 0:02:28.5]}
20... b6 {[%clk 0:02:56.7]} 21. h4 {[%clk 0:02:24.6]} 21... g6 {[%clk
0:02:57.4]} 22. Kg3 {[%clk 0:02:24.8]} 22... Qd8 {[%clk 0:02:55.5]} 23. h5
{[%clk 0:02:22.6]} 23... Rc8 {[%clk 0:02:55.5]} 24. hxg6 {[%clk 0:02:22.3]}
24... hxg6 {[%clk 0:02:56.4]} 25. g5 {[%clk 0:02:22.5]} 25... d4 {[%clk
0:02:55.6]} 26. Kg4 {[%clk 0:02:22.8]} 26... Qd6 {[%clk 0:02:55.8]} 27. c3
{[%clk 0:02:17.3]} 27... dxc3 {[%clk 0:02:55]} 28. Bc2 {[%clk 0:02:15.1]} 28...
Qd4+ {[%clk 0:02:54.9]} 29. Kg3 {[%clk 0:02:10.5]} 29... Rd8 {[%clk 0:02:51.8]}
30. bxc3 {[%clk 0:02:09.3]} 30... Qxc3+ {[%clk 0:02:51.9]} 31. Kf2 {[%clk
0:02:04.5]} 31... Qxc2+ {[%clk 0:02:52.8]} 32. Re2 {[%clk 0:02:05.1]} 32... Rd2
{[%clk 0:02:51.5]} 33. Rxd2 {[%clk 0:02:01.5]} 33... Qxd2+ {[%clk 0:02:52.4]}
34. Kf3 {[%clk 0:02:01.9]} 34... Qc3+ {[%clk 0:02:52.8]} 35. Ke2 {[%clk
0:01:48.9]} 35... Kg7 {[%clk 0:02:54.7]} 36. Kf2 {[%clk 0:01:39.4]} 36... f6
{[%clk 0:02:56.6]} 37. gxf6+ {[%clk 0:01:33.7]} 37... Kxf6 {[%clk 0:02:58.5]}
38. Ke2 {[%clk 0:01:24.6]} 38... Ke5 {[%clk 0:02:58.6]} 39. Kf2 {[%clk
0:01:14.2]} 39... Ke4 {[%clk 0:03:00.5]} 40. Kg2 {[%clk 0:01:10.9]} 40... Qf3+
{[%clk 0:03:02.4]} 41. Kg1 {[%clk 0:01:09.2]} 41... Kf4 {[%clk 0:03:02.9]} 42.
Kh2 {[%clk 0:01:01.6]} 42... Qg4 {[%clk 0:03:00.4]} 43. Kh1 {[%clk 0:01:01.3]}
43... Kf3 {[%clk 0:03:01]} 44. Kh2 {[%clk 0:01:01.3]} 44... Kf2 {[%clk 0:03:02]}
45. Kh1 {[%clk 0:00:59.3]} 45... Qh4# {[%clk 0:03:02.7]} 0

[Event "Open Nuevo Centro. Jornada 2"]
[Site "Chess.com"]
[Date "2020.06.26"]
[Round "4"]
[White "Conejero Martínez, Víctor"]
[Black "Chernikov, Vladimir"]
[Result "0-1"]
[WhiteElo "1195"]
[BlackElo "2274"]
[TimeControl "180+2"]
[EndTime "11:10:12 PDT"]
[Termination "Victoria de isla88 por abandono"]

1. d4 {[%clk 0:02:59]} 1... Nf6 {[%clk 0:02:59.2]} 2. c4 {[%clk 0:02:58.8]} 2...
e5 {[%clk 0:03:00]} 3. dxe5 {[%clk 0:02:58.5]} 3... Ng4 {[%clk 0:03:00.8]} 4.
Nf3 {[%clk 0:02:54.2]} 4... Bc5 {[%clk 0:03:00.8]} 5. e3 {[%clk 0:02:50]} 5...
Nc6 {[%clk 0:03:01]} 6. Nc3 {[%clk 0:02:50.4]} 6... O-O {[%clk 0:03:00.9]} 7.
Bd3 {[%clk 0:02:49.5]} 7... Ngxe5 {[%clk 0:02:53.8]} 8. O-O {[%clk 0:02:45.9]}
8... Nxd3 {[%clk 0:02:47.6]} 9. Qxd3 {[%clk 0:02:46.3]} 9... d6 {[%clk
0:02:44.5]} 10. Ne4 {[%clk 0:02:47]} 10... Bf5 {[%clk 0:02:38.6]} 11. Qd5 {[%clk
0:02:34.6]} 11... Ne7 {[%clk 0:02:34.1]} 12. Qd3 {[%clk 0:02:24.6]} 12... Ng6
{[%clk 0:02:25.6]} 13. Nfd2 {[%clk 0:02:23]} 13... Ne5 {[%clk 0:02:23.9]} 14.
Qb3 {[%clk 0:02:19.1]} 14... Bb6 {[%clk 0:02:15.4]} 15. f3 {[%clk 0:02:09.5]}
15... Qh4 {[%clk 0:02:06.9]} 16. Ng3 {[%clk 0:02:03.3]} 16... Be6 {[%clk
0:02:00]} 17. Nde4 {[%clk 0:02:00.7]} 17... Bxc4 {[%clk 0:01:55]} 18. Qc3 {[%clk
0:01:55.8]} 18... Bxf1 {[%clk 0:01:52.3]} 19. Nxf1 {[%clk 0:01:56.7]} 19... d5
{[%clk 0:01:34.8]} 20. Neg3 {[%clk 0:01:48.6]} 20... d4 {[%clk 0:01:34]} 21.
exd4 {[%clk 0:01:46.7]} 21... Bxd4+ {[%clk 0:01:34.4]} 22. Qxd4 {[%clk
0:01:29.7]} 22... Qxd4+ {[%clk 0:01:34.6]} 23. Be3 {[%clk 0:01:29.6]} 23... Qxb2
{[%clk 0:01:34.5]} 24. Rc1 {[%clk 0:01:28]} 24... c6 {[%clk 0:01:35.2]} 25. Rd1
{[%clk 0:01:24.1]} 25... Rfd8 {[%clk 0:01:35.2]} 26. Nf5 {[%clk 0:01:23]} 26...
Rxd1 {[%clk 0:01:34.4]} 27. Ne7+ {[%clk 0:01:22.4]} 27... Kh8 {[%clk 0:01:34.6]}
28. h3 {[%clk 0:01:14.2]} 28... Qe2 {[%clk 0:01:34.1]} 29. Bf2 {[%clk 0:01:13]}
29... Rxf1+ {[%clk 0:01:32.5]} 30. Kh2 {[%clk 0:01:13]} 30... Qxf2 {[%clk
0:01:33.8]} 0

[Event "Open Nuevo Centro. Jornada 2"]
[Site "Chess.com"]
[Date "2020.06.26"]
[Round "4"]
[White "Denis Cazacu, Ioan"]
[Black "Yeste Campos, Manuel"]
[Result "1-0"]
[WhiteElo "1398"]
[BlackElo "921"]
[TimeControl "180+2"]
[EndTime "11:10:20 PDT"]
[Termination "Victoria de TFdenis25 por jaque mate"]

1. d4 {[%clk 0:03:01.9]} 1... d5 {[%clk 0:02:59.8]} 2. c4 {[%clk 0:03:03.2]}
2... c6 {[%clk 0:02:59.7]} 3. Nc3 {[%clk 0:03:04.6]} 3... Nf6 {[%clk 0:02:55.9]}
4. Nf3 {[%clk 0:03:06.1]} 4... e6 {[%clk 0:02:54.9]} 5. Bg5 {[%clk 0:03:06.4]}
5... Be7 {[%clk 0:02:55.1]} 6. e3 {[%clk 0:03:07.1]} 6... O-O {[%clk 0:02:54.4]}
7. Bd3 {[%clk 0:03:07.5]} 7... h6 {[%clk 0:02:52.9]} 8. Bh4 {[%clk 0:03:08.1]}
8... c5 {[%clk 0:02:41.2]} 9. cxd5 {[%clk 0:03:06.3]} 9... exd5 {[%clk
0:02:35.3]} 10. Bc2 {[%clk 0:03:06.2]} 10... cxd4 {[%clk 0:02:35.3]} 11. Nxd4
{[%clk 0:03:08.1]} 11... Nc6 {[%clk 0:02:27.2]} 12. Nxc6 {[%clk 0:03:09]} 12...
bxc6 {[%clk 0:02:28]} 13. Qd3 {[%clk 0:03:09.7]} 13... g6 {[%clk 0:02:21.9]} 14.
Bxf6 {[%clk 0:02:58]} 14... Bxf6 {[%clk 0:02:18.9]} 15. h4 {[%clk 0:02:58.6]}
15... Kg7 {[%clk 0:02:19.2]} 16. h5 {[%clk 0:02:59.4]} 16... Bf5 {[%clk
0:02:12.9]} 17. Qd2 {[%clk 0:02:55]} 17... Bxc2 {[%clk 0:02:11.9]} 18. Qxc2
{[%clk 0:02:56.8]} 18... gxh5 {[%clk 0:02:11.9]} 19. Rxh5 {[%clk 0:02:57.1]}
19... c5 {[%clk 0:02:03.1]} 20. O-O-O {[%clk 0:02:57.7]} 20... d4 {[%clk
0:02:03.2]} 21. Ne4 {[%clk 0:02:55.6]} 21... Qa5 {[%clk 0:01:53.2]} 22. Nxf6
{[%clk 0:02:53.5]} 22... Kxf6 {[%clk 0:01:49]} 23. Qf5+ {[%clk 0:02:51.6]} 23...
Ke7 {[%clk 0:01:48.3]} 24. Qe5+ {[%clk 0:02:49.9]} 24... Kd8 {[%clk 0:01:45.5]}
25. Qf6+ {[%clk 0:02:50.9]} 25... Kc8 {[%clk 0:01:41.8]} 26. Qc6+ {[%clk
0:02:50.9]} 26... Kb8 {[%clk 0:01:36.1]} 27. Qd6+ {[%clk 0:02:51.4]} 27... Kb7
{[%clk 0:01:30.6]} 28. Rxc5 {[%clk 0:02:47.6]} 28... Qxa2 {[%clk 0:01:24.2]} 29.
Rc7+ {[%clk 0:02:32.7]} 29... Kb8 {[%clk 0:01:18.9]} 30. Rxf7+ {[%clk
0:02:31.5]} 30... Kc8 {[%clk 0:01:06.3]} 31. Rxf8+ {[%clk 0:02:30.7]} 31... Kb7
{[%clk 0:01:01.8]} 32. Qb4+ {[%clk 0:02:30.2]} 32... Kc7 {[%clk 0:00:57.6]} 33.
Rxa8 {[%clk 0:02:26.8]} 33... Qa1+ {[%clk 0:00:59.3]} 34. Kc2 {[%clk 0:02:27]}
34... Qa6 {[%clk 0:00:56.5]} 35. Rxd4 {[%clk 0:02:25.3]} 35... Qc6+ {[%clk
0:00:55.8]} 36. Rc4 {[%clk 0:02:24.7]} 36... Qxc4+ {[%clk 0:00:55.8]} 37. Qxc4+
{[%clk 0:02:25.2]} 37... Kb6 {[%clk 0:00:56.6]} 38. Rb8+ {[%clk 0:02:24.7]}
38... Ka5 {[%clk 0:00:52.7]} 39. Qa2# {[%clk 0:02:26.1]} 1

[Event "Open Nuevo Centro. Jornada 2"]
[Site "Chess.com"]
[Date "2020.06.26"]
[Round "4"]
[White "Donate Moreno, David"]
[Black "Martínez Albelda, Mariela"]
[Result "1-0"]
[WhiteElo "1520"]
[BlackElo "1005"]
[TimeControl "180+2"]
[EndTime "11:10:25 PDT"]
[Termination "Victoria de sylar48 por jaque mate"]

1. e4 {[%clk 0:03:01.9]} 1... e5 {[%clk 0:02:59.8]} 2. Nf3 {[%clk 0:03:02.4]}
2... Nc6 {[%clk 0:02:59.3]} 3. Bc4 {[%clk 0:03:02.7]} 3... Bc5 {[%clk
0:02:56.8]} 4. c3 {[%clk 0:03:02.5]} 4... Nf6 {[%clk 0:02:56.9]} 5. d4 {[%clk
0:03:03.4]} 5... exd4 {[%clk 0:02:56.8]} 6. O-O {[%clk 0:03:04.5]} 6... dxc3
{[%clk 0:02:55.5]} 7. e5 {[%clk 0:03:04.7]} 7... cxb2 {[%clk 0:02:50]} 8. Bxb2
{[%clk 0:03:04.6]} 8... Ng4 {[%clk 0:02:46.6]} 9. Bxf7+ {[%clk 0:03:01.9]} 9...
Kxf7 {[%clk 0:02:44.3]} 10. Qd5+ {[%clk 0:03:02.3]} 10... Ke8 {[%clk 0:02:35.7]}
11. Qxc5 {[%clk 0:03:03.1]} 11... d6 {[%clk 0:02:28]} 12. exd6 {[%clk
0:03:01.7]} 12... cxd6 {[%clk 0:02:28.9]} 13. Re1+ {[%clk 0:02:59.1]} 13... Ne7
{[%clk 0:02:25.4]} 14. Qh5+ {[%clk 0:02:55.3]} 14... g6 {[%clk 0:02:16.1]} 15.
Qb5+ {[%clk 0:02:55.4]} 15... Qd7 {[%clk 0:02:11.9]} 16. Qxd7+ {[%clk
0:02:54.8]} 16... Bxd7 {[%clk 0:02:12.5]} 17. Bxh8 {[%clk 0:02:55.9]} 17... Kf7
{[%clk 0:02:07.2]} 18. Bd4 {[%clk 0:02:53.1]} 18... Nf5 {[%clk 0:01:58.1]} 19.
Ng5+ {[%clk 0:02:48.2]} 19... Kf8 {[%clk 0:01:52.1]} 20. Nxh7+ {[%clk
0:02:46.9]} 20... Kg8 {[%clk 0:01:51.7]} 21. Nf6+ {[%clk 0:02:45.9]} 21... Nxf6
{[%clk 0:01:51]} 22. Bxf6 {[%clk 0:02:47]} 22... Kf7 {[%clk 0:01:52.1]} 23. Bb2
{[%clk 0:02:47.1]} 23... Rc8 {[%clk 0:01:47]} 24. Nc3 {[%clk 0:02:46]} 24... Nd4
{[%clk 0:01:40.9]} 25. Rad1 {[%clk 0:02:45.4]} 25... Nf5 {[%clk 0:01:34.8]} 26.
g4 {[%clk 0:02:44.8]} 26... Nh6 {[%clk 0:01:30.7]} 27. Rxd6 {[%clk 0:02:43.7]}
27... Rc7 {[%clk 0:01:29.5]} 28. Nd5 {[%clk 0:02:42.3]} 28... Rc2 {[%clk
0:01:13.7]} 29. Re7+ {[%clk 0:02:42.1]} 29... Kf8 {[%clk 0:01:06.7]} 30. Rf6+
{[%clk 0:02:23.3]} 30... Kg8 {[%clk 0:01:02.5]} 31. Rxg6+ {[%clk 0:02:21]} 31...
Kf8 {[%clk 0:00:57]} 32. Rxh6 {[%clk 0:02:18.4]} 32... Rxb2 {[%clk 0:00:28.9]}
33. Rh8# {[%clk 0:02:18.4]} 1